Workbook

Sheet KORTTI
B1: Tarja Kettunen | E1: 12.9.1960
B2: MESTARUUSSARJA | E2: Runkosarja | I2: Kärkilyönnit (KL), pesänvälit | Q2: Runkosarja | U2: Ylempi loppusarja | Z2: Alempi loppusarja | AE2: Arvo-ottelut ja mitalit | AK2: Runkosarjan jälkeen
B3: Vuosi | C3: Sija | D3: Seura | E3: OTT | F3: KUN | G3: LÖI | H3: TOI | I3: KL | J3: 0 > 1 | K3: 1 > 2 | L3: 2 > 3 | M3: 3 > k | N3: KL-% | P3: LÖI | Q3: TOI | R3: L+T | S3: KL | U3: OTT | V3: KUN | W3: LÖI | X3: TOI | Y3: KL | Z3: OTT | AA3: KUN | AB3: LÖI | AC3: TOI | AD3: KL | AE3: IL | AF3: LL | AG3: Cup | AH3: K | AI3: H | AJ3: P
B4: 1977 | C4: 3. | D4: PuMu | E4: 0 | F4: 0 | G4: 0 | H4: 0 | U4: 1 | V4: 0 | W4: 0 | X4: 0 | AJ4: 1 | AK4: loppusarja
B5: 1978 | C5: 11.-12. | D5: PuMu | E5: 10 | F5: 2 | G5: 3 | H5: 2 | Z5: 1 | AA5: 0 | AB5: 0 | AC5: 1 | AK5: putoamissarja
B6: 1979
B7: 1980
B8: 1981 | C8: 2. | D8: Roihu | E8: 17 | F8: 1 | G8: 9 | H8: 14 | I8: 55 | J8: 9 | K8: 15 | L8: 21 | M8: 10 | N8: 62.5 % | O8: =PRODUCT(I8/N8) -> 88 | AG8: 1
B9: 1982 | C9: 2. | D9: Roihu | E9: 18 | F9: 1 | G9: 11 | H9: 14 | I9: 72 | J9: 37 | K9: 8 | L9: 15 | M9: 12 | N9: 47.1 % | O9: =PRODUCT(I9/N9) -> 153 | AG9: 1 | AI9: 1
B10: 1983 | C10: 5. | D10: Roihu | E10: 18 | F10: 2 | G10: 19 | H10: 10 | I10: 67 | J10: 11 | K10: 11 | L10: 24 | M10: 21 | N10: 69.5 % | O10: 96.43939394 | AG10: 1
B11: 1984 | C11: 4. | D11: Roihu | E11: 17 | F11: 1 | G11: 17 | H11: 14 | I11: 69 | J11: 16 | K11: 9 | L11: 24 | M11: 18 | N11: 66.0 % | O11: 104.5147059 | AG11: 1
B12: 1985 | C12: 2. | D12: Roihu | E12: 18 | F12: 0 | G12: 22 | H12: 16 | I12: 58 | J12: 7 | K12: 11 | L12: 18 | M12: 22 | N12: 51.8 % | O12: 112 | AI12: 1
B13: 1986 | C13: 2. | D13: Roihu | E13: 18 | F13: 3 | G13: 37 | H13: 29 | I13: 94 | J13: 6 | K13: 25 | L13: 23 | M13: 40 | N13: ---- | O13: 0 | P13: 5. | R13: 4. | AI13: 1
B14: 1987 | C14: 4. | D14: Roihu | E14: 18 | F14: 1 | G14: 11 | H14: 7 | I14: 55 | J14: 13 | K14: 11 | L14: 19 | M14: 12 | N14: ---- | O14: 0 | T14: =PRODUCT(L14/S14) -> 
B15: 1988 | C15: 2. | D15: Roihu | E15: 18 | F15: 4 | G15: 24 | H15: 12 | I15: 79 | J15: 13 | K15: 12 | L15: 26 | M15: 28 | N15: ---- | O15: 0 | AI15: 1 | AK15: finaalit
B16: 1989 | C16: 5. | D16: Roihu | E16: 18 | F16: 3 | G16: 25 | H16: 19 | I16: 77 | J16: 16 | K16: 17 | L16: 16 | M16: 28 | N16: ---- | O16: 0
B17: Yhteensä | E17: =SUM(E4:E16) -> 170 | F17: 18 | G17: 178 | H17: 137 | I17: 626 | J17: 128 | K17: 119 | L17: 186 | M17: 191 | N17: =PRODUCT(319/O17) -> 57.6 % | O17: =SUM(O4:O16) -> 55395.4 % | U17: =SUM(U4:U16) -> 1 | V17: 0 | W17: 0 | X17: 0 | Y17: 0 | Z17: 1 | AA17: 0 | AB17: 0 | AC17: 1 | AD17: 0 | AE17: 0 | AF17: 0 | AG17: 4 | AH17: 0 | AI17: 4 | AJ17: 1
B18: Pesispörssi | D18: 679.3
B20: URA SM-SARJASSA | E20: OTT | F20: KUN | G20: LÖI | H20: TOI | I20: KL | K20: ka/L | L20: ka/T | M20: ka/KL | N20: KL-% | P20: ENSIMMÄISET
B21: Runkosarja | E21: =PRODUCT(E17) -> 170 | F21: =PRODUCT(F17) -> 18 | G21: =PRODUCT(G17) -> 178 | H21: =PRODUCT(H17) -> 137 | I21: =PRODUCT(I17) -> 626 | K21: =PRODUCT((F21+G21)/E21) -> 1.15 | L21: =PRODUCT(H21/E21) -> 0.81 | M21: =PRODUCT(I21/E21) -> 3.68 | N21: =PRODUCT(N17) -> 57.6 % | P21: Ottelu | S21: 04.09. 1977 PuMu | AD21: 1. ottelu | AF21: 16 v 11 kk 23 pv
B22: Ylempi loppusarja | P22: Lyöty juoksu | S22: 01.06. 1978 PuMu | AD22: 4. ottelu | AF22: 17 v 8 kk 20 pv
B23: Alempi loppusarja | P23: Tuotu juoksu | S23: 04.06. 1978 PuMu | AD23: 5. ottelu | AF23: 17 v 8 kk 23 pv
B24: KAIKKI | E24: =SUM(E21:E23) -> 170 | F24: =SUM(F21:F23) -> 18 | G24: =SUM(G21:G23) -> 178 | H24: =SUM(H21:H23) -> 137 | I24: =SUM(I21:I23) -> 626 | K24: =PRODUCT((F24+G24)/E24) -> 1.15 | L24: =PRODUCT(H24/E24) -> 0.81 | M24: =PRODUCT(I24/E24) -> 3.68 | N24: =PRODUCT(N17) -> 57.6 % | P24: Kunnari | S24: 04.06. 1978 PuMu | AD24: 5. ottelu | AF24: 17 v 8 kk 23 pv
B26: Seurat | D26: Roihu = Roihu, Helsinki (1957)
